fUSD/lending_fUSD_20251101
["ID","MTS","AMOUNT","RATE_DAILY","PERIOD"]
[392830261,1762013115810,150.0,0.00014537,2]
[392830262,1762013115880,150.0,0.00014687,2]
[392830263,1762013117128,201.13248239,0.00013488,2]
[392830264,1762013117408,150.0,0.00013488,2]
[392830265,1762013117449,150.0,0.00013603,2]
[392830266,1762013117500,150.0,0.00013718,2]
[392830267,1762013117590,150.0,0.00013834,2]
[392830268,1762013117671,150.0,0.00013949,2]
[392830269,1762013117722,150.0,0.00014064,2]
[392830270,1762013117794,150.0,0.00014179,2]
[392830271,1762013117862,150.0,0.00014295,2]
[392830272,1762013117927,150.0,0.0001441,2]
[392830273,1762013118002,150.0,0.00014525,2]
[392830274,1762013118074,150.0,0.0001464,2]
[392830275,1762013118142,150.0,0.00014756,2]
[392830276,1762013126111,150.0,0.00013488,2]
[392830277,1762013126265,150.0,0.00013488,2]
[392830278,1762013126385,154.48626728,0.00013488,2]
[392830279,1762013127406,150.0,0.00013488,2]
[392830280,1762013127446,150.0,0.00013862,2]
[392830281,1762013127496,150.0,0.00014237,2]
[392830282,1762013127569,150.0,0.00014612,2]
[392830283,1762013128012,150.0,0.00013488,2]
[392830284,1762013128074,150.0,0.00014237,2]
[392830285,1762013135868,150.0,0.00013488,2]
[392830286,1762013135920,150.0,0.00014237,2]
[392830287,1762013136453,150.0,0.00013488,2]
[392830288,1762013136502,150.0,0.0001413,2]
[392830289,1762013136540,150.0,0.00013916,2]
[392830290,1762013136577,150.0,0.00013702,2]
[392830291,1762013136615,150.0,0.00014344,2]
[392830292,1762013136688,150.0,0.00014558,2]
[392830293,1762013136752,150.0,0.00014772,2]
[392830294,1762013136910,150.0,0.00013488,2]
[392830295,1762013136973,150.0,0.00014237,2]
[392830296,1762013142248,-4223.09992201,0.00014811,2]
[392830297,1762013172510,-151.0,0.00014813,2]
[392830298,1762013172541,-151.0,0.00014813,2]
[392830299,1762013173066,3111.3790131,0.00014802,2]
[392830300,1762013173282,151.0,0.00014813,2]
[392830301,1762013173331,151.0,0.00014813,2]
[392830302,1762013174371,151.0,0.00014813,2]
[392830303,1762013187907,-150.0,0.0001482,2]
[392830304,1762013202963,-1200.0,0.00014821,2]
[392830305,1762013218191,-4223.09992201,0.00014822,2]
[392830306,1762013233493,-239.84119403,0.00014826,2]
[392830307,1762013235744,152.56292513,0.00014813,2]
[392830308,1762013248807,-300.0,0.00014832,2]
[392830309,1762013248838,-300.0,0.00014832,2]
[392830310,1762013255155,250.0,0.00013892,2]
[392830311,1762013264258,-4223.09992201,0.00014833,2]
[392830312,1762013264498,168.0,0.00014562,2]
[392830313,1762013265542,239.84119403,0.00014813,2]
[392830314,1762013279549,-150.0,0.00014836,2]
[392830315,1762013282004,686.42,6.947e-05,2]
[392830316,1762013282222,686.42,7.313e-05,2]
[392830317,1762013282426,686.42,7.678e-05,2]
[392830318,1762013282464,3690.8348,0.000148,2]
[392830319,1762013282617,686.42,8.044e-05,2]
[392830320,1762013282832,686.42,8.41e-05,2]
[392830321,1762013283029,686.42,8.775e-05,2]
[392830322,1762013283232,686.42,9.141e-05,2]
[392830323,1762013283452,686.42,9.507e-05,2]
[392830324,1762013283666,517.8152,9.872e-05,2]
[392830325,1762013283696,168.6048,9.872e-05,2]
[392830326,1762013283886,686.42,0.00010238,2]
[392830327,1762013284086,686.42,0.00010604,2]
[392830328,1762013284289,686.42,0.00010969,2]
[392830329,1762013284510,686.42,0.00011335,2]
[392830330,1762013284716,686.42,0.00011701,2]
[392830331,1762013284957,686.42,0.00012066,2]
[392830332,1762013285164,686.42,0.00012432,2]
[392830333,1762013285358,686.42,0.00012798,2]
[392830334,1762013285554,686.42,0.00013163,2]
[392830335,1762013285789,686.42,0.00013529,2]
[392830336,1762013286004,686.42,0.00013894,2]
[392830338,1762013288799,1587.9987,0.000148,2]
[392830339,1762013310203,-156.73388431,0.00014839,2]
[392830340,1762013310645,150.0,0.00030444,120]
[392830341,1762013315850,500.0,0.00031232,120]
[392830342,1762013316082,500.0,0.00031506,120]
[392830343,1762013316363,221.6410156,0.00014711,2]
[392830344,1762013325359,-250.0,0.00014842,2]
[392830345,1762013340646,-4223.09992201,0.00014844,2]
[392830346,1762013341048,1553.81015598,0.00014842,2]
[392830347,1762013341082,2871.18984402,0.00014842,2]
[392830348,1762013344410,150.0,0.00013897,2]
[392830349,1762013355951,-332.27351,0.0001485,2]
[392830350,1762013357672,500.0,0.00031506,120]
[392830351,1762013371279,-5000.0,0.00014851,2]
[392830352,1762013386689,-300.0,0.00014853,2]
[392830353,1762013386719,-195.0,0.00014853,2]
[392830354,1762013401991,-1200.0,0.00014855,2]
[392830355,1762013417177,-485.0,0.00014858,2]
[392830356,1762013417287,200.0,0.00013909,2]
[392830371,1762013432217,-300.0,0.00014866,2]
[392830372,1762013432227,-300.0,0.00014866,2]
[392830373,1762013432237,-1842.8397316,0.00014869,2]
[392830374,1762013432246,-156.45440499,0.00014869,2]
[392830375,1762013432258,-200.0,0.0001487,2]
[392830376,1762013432269,-1200.0,0.00014871,2]
[392830377,1762013432278,-150.0,0.00014871,2]
[392830378,1762013432289,-300.0,0.00014872,2]
[392830379,1762013432299,-300.0,0.00014872,2]
[392830380,1762013432308,-631.06861925,0.00014872,2]
[392830381,1762013432370,-1211.77111232,0.00014872,2]
[392830382,1762013432382,-215.23783766,0.00014876,2]
[392830383,1762013432394,-1306.51605683,0.00014876,2]
[392830402,1762013438119,-321.08583708,0.00014876,2]
[392830403,1762013438129,-1427.99795585,0.00014879,2]
[392830404,1762013438275,-414.84177572,0.00014879,2]
[392830405,1762013438286,-1298.51211786,0.00014883,2]
[392830406,1762013438329,-544.32761371,0.00014883,2]
[392830407,1762013438339,-59.08972031,0.00014886,2]
[392830413,1762013439119,893.09678367,0.00014543,2]
[392830415,1762013440227,-263.48750032,0.00014886,2]
[392830416,1762013440239,-1520.26251094,0.00014886,2]
[392830417,1762013440248,-686.61799746,0.0001489,2]
[392830418,1762013440391,-1156.22173411,0.0001489,2]
[392830419,1762013440400,-150.0,0.0001489,2]
[392830420,1762013440409,-1558.36,0.00014891,2]
[392830421,1762013440418,-151.90915939,0.00014891,2]
[392830422,1762013440428,-150.79851215,0.00014891,2]
[392830423,1762013440437,-150.0,0.00014891,2]
[392830424,1762013440446,-150.0,0.00014891,2]
[392830425,1762013440455,-500.0,0.00014891,2]
[392830426,1762013440466,-500.0,0.00014891,2]
[392830427,1762013440475,-500.0,0.00014891,2]
[392830428,1762013440484,-150.0,0.00014891,2]
[392830429,1762013440493,-500.0,0.00014891,2]
[392830430,1762013440503,-500.0,0.00014891,2]
[392830431,1762013440512,-500.0,0.00014891,2]
[392830432,1762013440521,-500.0,0.00014891,2]
[392830433,1762013440530,-381.18930875,0.00014891,2]
[392830434,1762013440540,-500.0,0.00014891,2]
[392830435,1762013440549,-300.0,0.00014891,2]
[392830436,1762013440558,-346.92554585,0.00014891,2]
[392830437,1762013440567,-151.14476816,0.00014891,2]
[392830438,1762013440576,-500.0,0.00014891,2]
[392830440,1762013440586,-151.0,0.00014891,2]
[392830442,1762013440595,-500.0,0.00014891,2]
[392830443,1762013440604,-623.58710448,0.00014891,2]
[392830444,1762013440613,-286.5032696,0.00014891,2]
[392830446,1762013440622,-200.0,0.00014891,2]
[392830448,1762013440631,-496.47127164,0.00014891,2]
[392830450,1762013440641,-160.0,0.00014891,2]
[392830452,1762013440650,-151.0,0.00014891,2]
[392830454,1762013440659,-200.0,0.00014891,2]
[392830456,1762013440668,-250.0,0.00014891,2]
[392830457,1762013440677,-500.0,0.00014891,2]
[392830459,1762013440687,-250.0,0.00014891,2]
[392830461,1762013440696,-500.0,0.00014891,2]
[392830462,1762013440705,-250.0,0.00014891,2]
[392830463,1762013440715,-250.0,0.00014891,2]
[392830464,1762013440724,-500.0,0.00014891,2]
[392830465,1762013440733,-250.0,0.00014891,2]
[392830466,1762013440742,-250.0,0.00014891,2]
[392830467,1762013440752,-500.0,0.00014891,2]
[392830468,1762013440762,-250.0,0.00014891,2]
[392830469,1762013440772,-250.0,0.00014891,2]
[392830470,1762013440782,-500.0,0.00014891,2]
[392830471,1762013440792,-250.0,0.00014891,2]
[392830472,1762013440801,-250.0,0.00014891,2]
[392830473,1762013440811,-500.0,0.00014891,2]
[392830474,1762013440820,-250.0,0.00014891,2]
[392830475,1762013440831,-500.0,0.00014891,2]
[392830476,1762013440840,-200.0,0.00014891,2]
[392830477,1762013440850,-500.0,0.00014891,2]
[392830478,1762013440859,-500.0,0.00014891,2]
[392830479,1762013440867,-500.0,0.00014891,2]
[392830480,1762013440877,-500.0,0.00014891,2]
[392830481,1762013440886,-500.0,0.00014891,2]
[392830482,1762013440896,-620.0,0.00014891,2]
[392830483,1762013440905,-500.0,0.00014891,2]
[392830484,1762013440915,-151.0,0.00014891,2]
[392830485,1762013440924,-181.08010149,0.00014891,2]
[392830486,1762013440933,-500.0,0.00014891,2]
[392830487,1762013440943,-500.0,0.00014891,2]
[392830488,1762013440952,-181.08010149,0.00014891,2]
[392830489,1762013440961,-250.0,0.00014891,2]
[392830490,1762013440970,-250.0,0.00014891,2]
[392830491,1762013440979,-250.0,0.00014891,2]
[392830492,1762013440988,-250.0,0.00014891,2]
[392830493,1762013440997,-250.0,0.00014891,2]
[392830494,1762013441006,-1842.83973157,0.00014893,2]
[392830495,1762013441015,-4597.13613983,0.00014894,2]
[392830496,1762013441024,-485.0,0.00014896,2]
[392830497,1762013441033,-162.73293916,0.00014896,2]
[392830498,1762013441042,-1842.83973157,0.00014897,2]
[392830499,1762013441051,-500.0,0.00014899,2]
[392830500,1762013441060,-500.0,0.00014899,2]
[392830501,1762013441071,-261.12276185,0.00014899,2]
[392830502,1762013441081,-500.0,0.00014899,2]
[392830503,1762013441090,-500.0,0.00014899,2]
[392830504,1762013441099,-500.0,0.00014899,2]
[392830505,1762013441108,-500.0,0.00014899,2]
[392830506,1762013441117,-506.99969866,0.00014899,2]
[392830507,1762013441127,-500.0,0.00014899,2]
[392830508,1762013441136,-500.0,0.00014899,2]
[392830509,1762013441146,-500.0,0.00014899,2]
[392830510,1762013441155,-500.0,0.00014899,2]
[392830511,1762013441163,-486.20088814,0.00014899,2]
[392830512,1762013441172,-500.0,0.00014899,2]
[392830513,1762013441181,-354.05632821,0.00014899,2]
[392830514,1762013441192,-646.261,0.000149,2]
[392830515,1762013441202,-246525.8918,0.000149,2]
[392830516,1762013441212,-1000.0,0.000149,2]
[392830517,1762013441222,-323.31169923,0.000149,2]
[392830518,1762013441231,-500.0,0.000149,2]
[392830519,1762013441240,-500.0,0.000149,2]
[392830520,1762013441249,-150.0,0.000149,2]
[392830521,1762013441258,-500.0,0.000149,2]
[392830522,1762013441267,-500.0,0.000149,2]
[392830523,1762013441275,-200.0,0.000149,2]
[392830524,1762013441284,-1842.83973157,0.000149,2]
[392830525,1762013441294,-150.0,0.000149,2]
[392830526,1762013441303,-150.0,0.000149,2]
[392830527,1762013441312,-150.0,0.000149,2]
[392830528,1762013441321,-500.0,0.000149,2]
[392830529,1762013441330,-500.0,0.000149,2]
[392830530,1762013441339,-1000.0,0.000149,2]
[392830531,1762013441349,-150.0,0.00014903,2]
[392830532,1762013441358,-1425.0,0.00014906,2]
[392830533,1762013441367,-485.0,0.00014913,2]
[392830534,1762013441376,-368.57,0.00014946,2]
[392830535,1762013441391,-201.29705626,0.00014947,2]
[392830536,1762013441400,-308.77,0.00014948,2]
[392830537,1762013441409,-500.0,0.00014959,2]
[392830538,1762013441418,-627.54773678,0.00014959,2]
[392830539,1762013441427,-89168.10915088,0.0001496,2]
[392830540,1762013441436,-2067.73169605,0.00014968,2]
[392830541,1762013441445,-3002.421,0.00014969,2]
[392830542,1762013441454,-500.0,0.00014973,2]
[392830543,1762013441462,-592.65085401,0.00014973,2]
[392830544,1762013441471,-507.70999988,0.00014973,2]
[392830545,1762013441480,-160.52722079,0.00014973,2]
[392830546,1762013441490,-500.0,0.00014973,2]
[392830547,1762013441499,-509.52637745,0.00014973,2]
[392830548,1762013441508,-500.0,0.00014973,2]
[392830549,1762013441517,-502.52385365,0.00014973,2]
[392830550,1762013441526,-575.63777896,0.00014973,2]
[392830551,1762013441535,-152.58559931,0.00014973,2]
[392830552,1762013441544,-820.0,0.00014976,2]
[392830553,1762013441553,-3420.0,0.00014976,2]
[392830554,1762013441563,-1594.0,0.00014976,2]
[392830555,1762013441571,-1314.0,0.00014976,2]
[392830556,1762013441581,-1272.0,0.00014976,2]
[392830557,1762013441590,-819.0,0.00014976,2]
[392830558,1762013441599,-7371.60929212,0.00014977,2]
[392830559,1762013441608,-1187.0,0.00014977,2]
[392830560,1762013441618,-905.0,0.00014977,2]
[392830561,1762013441627,-1152.0,0.00014982,2]
[392830562,1762013441636,-2188.503,0.00014982,2]
[392830563,1762013441645,-6652.0,0.00014982,2]
[392830564,1762013441655,-6468.0,0.00014982,2]
[392830565,1762013441663,-559.0,0.00014982,2]
[392830566,1762013441673,-153.1757439,0.00014986,2]
[392830567,1762013441682,-150.0,0.00014986,2]
[392830568,1762013441695,-265.86558,0.00014986,2]
[392830569,1762013441705,-154.24920313,0.00014986,2]
[392830570,1762013441714,-161.66544402,0.00014986,2]
[392830571,1762013441724,-282.30439477,0.00014986,2]
[392830572,1762013441733,-150.0,0.00014986,2]
[392830573,1762013441743,-183.95535834,0.00014986,2]
[392830574,1762013441752,-220.29140278,0.00014986,2]
[392830575,1762013441761,-174.70371665,0.00014986,2]
[392830576,1762013441771,-213.22810895,0.00014986,2]
[392830577,1762013441780,-155.0,0.00014993,2]
[392830578,1762013441790,-2920.0,0.00014994,2]
[392830579,1762013441799,-971492.67611209,0.00014994,2]
[392830580,1762013441813,-1244.1148132,0.00014994,2]
[392830590,1762013443517,-1330.08239876,0.00014994,2]
[392830591,1762013443528,-5253.41323589,0.00014994,2]
[392830592,1762013443625,-8134.40838975,0.00014994,2]
[392830593,1762013443637,-758.2,0.00014994,2]
[392830594,1762013443648,-55290.02646725,0.00014994,2]
[392830597,1762013443662,-126828.83409724,0.00014994,2]
[392830600,1762013443678,-4813.05,0.00014994,2]
[392830601,1762013446175,588.286,0.000148,2]
[392830602,1762013446294,-500.0,0.00014973,2]
[392830603,1762013446304,-67.95255499,0.00014994,2]
[392830604,1762013448086,156.73388431,0.000148,2]
[392830605,1762013450280,183.96,0.00011493,2]
[392830606,1762013459568,2751.0,0.00014184,2]
[392830607,1762013469429,182.0,0.00014631,2]
[392830608,1762013474943,500.0,0.00014899,2]
[392830609,1762013474981,359.1291185,0.00014899,2]
[392830610,1762013475022,500.0,0.00014899,2]
[392830611,1762013475062,192.63764644,0.00014899,2]
[392830612,1762013480287,182.0,0.000146,2]
[392830613,1762013521861,150.0,0.00014899,2]
[392830614,1762013522336,961.45,0.00014181,2]
[392830615,1762013553489,3881.09935075,0.000148,2]
[392830616,1762013553519,10000.01,0.000148,2]
[392830617,1762013553545,5550.51724925,0.000148,2]
[392830618,1762013554382,600.0,0.00014795,2]
[392830619,1762013554713,600.0,0.00014795,2]
[392830620,1762013554951,600.0,0.00014795,2]
[392830621,1762013555229,600.0,0.00014795,2]
[392830622,1762013555503,600.0,0.00014795,2]
[392830623,1762013555776,600.0,0.00014795,2]
[392830624,1762013556071,600.0,0.00014795,2]
[392830625,1762013556319,249.49275075,0.00014795,2]
[392830626,1762013556347,350.50724925,0.00014795,2]
[392830627,1762013559276,1200.0,0.00014899,2]
[392830628,1762013571670,1000.0,0.000148,2]
[392830629,1762013583139,999.0,0.00014071,3]
[392830630,1762013583206,300.0,0.00014899,2]
[392830631,1762013599968,7149.50275075,0.000148,2]
[392830632,1762013600000,10000.01,0.000148,2]
[392830633,1762013600028,10000.01,0.000148,2]
[392830634,1762013600055,10000.01,0.000148,2]
[392830635,1762013600080,10000.01,0.000148,2]
[392830636,1762013600107,10000.01,0.000148,2]
[392830637,1762013600132,10000.01,0.000148,2]
[392830638,1762013600159,10000.01,0.000148,2]
[392830639,1762013600188,10000.01,0.000148,2]
[392830640,1762013600216,10000.01,0.000148,2]
[392830641,1762013616019,-25.93885243,0.000148,2]
[392830642,1762013616121,-10000.01,0.000148,2]
[392830643,1762013616247,-10000.01,0.000148,2]
[392830644,1762013619565,-10000.01,0.000148,2]
[392830645,1762013619675,-10000.01,0.000148,2]
[392830646,1762013620038,-10000.01,0.000148,2]
[392830647,1762013620054,-10000.01,0.000148,2]
[392830648,1762013620084,-10000.01,0.000148,2]
[392830649,1762013620220,-10000.01,0.000148,2]
[392830650,1762013620345,-10000.01,0.000148,2]
[392830651,1762013621213,-10000.01,0.000148,2]
[392830652,1762013621639,-10000.01,0.000148,2]
[392830653,1762013621890,-10000.01,0.000148,2]
[392830654,1762013633463,-1425.0,0.00014741,2]
[392830655,1762013633507,-7150.01,0.000148,2]
[392830656,1762013633769,-10000.01,0.000148,2]
[392830657,1762013633921,-10000.01,0.000148,2]
[392830658,1762013634048,-10000.01,0.000148,2]
[392830659,1762013634176,-10000.01,0.000148,2]
[392830660,1762013634307,-10000.01,0.000148,2]
[392830661,1762013639432,-10000.01,0.000148,2]
[392830662,1762013639560,-10000.01,0.000148,2]
[392830663,1762013639679,-10000.01,0.000148,2]
[392830664,1762013639802,-10000.01,0.000148,2]
[392830665,1762013645505,-10000.01,0.000148,2]
[392830666,1762013645615,-10000.01,0.000148,2]
[392830667,1762013645909,-10000.01,0.000148,2]
[392830668,1762013646078,-10000.01,0.000148,2]
[392830669,1762013646221,-10000.01,0.000148,2]
[392830670,1762013646358,-10000.01,0.000148,2]
[392830671,1762013827100,7953.92,0.00014027,2]
[392830672,1762013897682,942.76,0.00013997,2]
[392830673,1762013929154,500.0,0.00031232,120]
[392830674,1762013929403,368.7066386,0.00031506,120]
[392830675,1762013942530,1103.33,0.00013952,2]
[392830676,1762013942559,2754.95,0.00013952,2]
[392830677,1762013955194,162.59,0.00013952,2]
[392830678,1762014160291,893.09678367,0.0001453,2]
[392830679,1762014160547,221.6410156,0.00014767,2]
[392830680,1762014183210,760.11,0.00013938,2]
[392830681,1762014194381,2000.0,0.00013938,2]
[392830682,1762014219502,451.81,0.00014,2]
[392830683,1762014219540,500.0,0.00014,2]
[392830684,1762014220328,500.0,0.00014,2]
[392830685,1762014220749,610.0,0.00013934,2]
[392830686,1762014221114,500.0,0.00014,2]
[392830687,1762014237648,-1380.0,0.00014787,2]
[392830688,1762014237678,-2500.0,0.00014789,2]
[392830689,1762014237707,-300.0,0.0001479,2]
[392830690,1762014237738,-440.01,0.00014796,2]
[392830691,1762014238164,-759.99,0.00014796,2]
[392830692,1762014238194,-300.0,0.00014796,2]
[392830693,1762014238223,-2017.18388616,0.00014797,2]
[392830694,1762014238269,-3845.66222768,0.00014797,2]
[392830695,1762014238300,-1108.68554464,0.00014798,2]
[392830696,1762014238367,-91.31445536,0.00014798,2]
[392830697,1762014238398,-300.0,0.00014798,2]
[392830698,1762014238428,-300.0,0.00014798,2]
[392830699,1762014238459,-150.0,0.00014799,2]
[392830700,1762014238883,-3660.14997305,0.000148,2]
[392830701,1762014238917,-10000.01,0.000148,2]
[392830702,1762014238955,-10000.01,0.000148,2]
[392830703,1762014238977,-10000.01,0.000148,2]
[392830704,1762014239046,-10000.01,0.000148,2]
[392830705,1762014239181,-2013.99842377,0.000148,2]
[392830706,1762014239214,-891.8528,0.000148,2]
[392830707,1762014239245,-1093.47054532,0.000148,2]
[392830708,1762014239324,-2001.36646182,0.00014891,2]
[392830709,1762014240560,-445.81087775,0.00014891,2]
[392830710,1762014240591,-2447.17733956,0.00014892,2]
[392830711,1762014240623,-1766.85622582,0.00014893,2]
[392830712,1762014240717,-680.32111374,0.00014893,2]
[392830713,1762014240751,-2447.17733956,0.00014894,2]
[392830714,1762014240780,-166.68645523,0.00014894,2]
[392830715,1762014240811,-2325.10507086,0.00014895,2]
[392830716,1762014240880,-122.0722687,0.00014895,2]
[392830717,1762014240911,-2309.29460312,0.00014895,2]
[392830718,1762014240942,-166.68645521,0.00014896,2]
[392830719,1762014240977,-2309.29460305,0.00014896,2]
[392830720,1762014241103,-166.68645521,0.00014896,2]
[392830721,1762014241124,-185.31413984,0.00014896,2]
[392830722,1762014246602,277.14486753,0.00014246,2]
[392830723,1762014249625,-300.0,0.00014893,2]
[392830724,1762014249659,-2095.17674451,0.00014896,2]
[392830725,1762014249693,-2309.29460305,0.00014896,2]
[392830726,1762014250187,-591.06730488,0.00014897,2]
[392830727,1762014250225,-1718.22729817,0.00014897,2]
[392830728,1762014250260,-2447.17733956,0.00014897,2]
[392830729,1762014250294,-166.68645521,0.00014897,2]
[392830730,1762014250349,-2309.29460305,0.00014897,2]
[392830731,1762014250381,-2309.29460305,0.00014898,2]
[392830732,1762014250444,-2447.17733956,0.00014898,2]
[392830733,1762014250475,-1938.96932088,0.00014898,2]
[392830734,1762014250526,-1227.71667912,0.00014898,2]
[392830735,1762014250555,-150.0,0.00014898,2]
[392830736,1762014250592,-2309.29460305,0.00014898,2]
[392830737,1762014250622,-166.68645521,0.00014899,2]
[392830738,1762014250763,-2309.29460305,0.00014899,2]
[392830739,1762014250797,-2447.17733956,0.00014899,2]
[392830740,1762014287910,244.04,0.00014,2]
[392830741,1762014301274,1637.96,0.00014,2]
[392830742,1762014309761,180.56305047,0.00013488,2]
[392830743,1762014309859,150.0,0.00013488,2]
[392830744,1762014309904,150.0,0.00013787,2]
[392830745,1762014310001,150.0,0.00014087,2]
[392830746,1762014310041,150.0,0.00014387,2]
[392830747,1762014310295,150.0,0.00013488,2]
[392830748,1762014310367,150.0,0.00014237,2]
[392830750,1762014316181,150.0,0.00013488,2]
[392830751,1762014316247,150.0,0.00013987,2]
[392830752,1762014316583,150.0,0.00014487,2]
[392830753,1762014316659,150.0,0.00013488,2]
[392830754,1762014316869,156.7604615,0.00013488,2]
[392830755,1762014322639,260.71700305,0.00013488,2]
[392830759,1762014331531,150.0,0.00013488,2]
[392830760,1762014352406,5869.96948498,0.0001399,2]
[392830761,1762014352438,10000.01,0.0001399,2]
[392830762,1762014352469,10000.01,0.0001399,2]
[392830763,1762014352499,10000.01,0.0001399,2]
[392830764,1762014352530,10000.01,0.0001399,2]
[392830765,1762014352555,27832.02513247,0.0001399,2]
[392830766,1762014352579,23800.6637964,0.0001399,2]
[392830783,1762014458166,2570.13,0.0001387,2]
[392830785,1762014484337,1456.74142345,0.0001439,2]
[392830786,1762014485303,488.21,0.00013862,2]
[392830791,1762014508628,265.83987801,0.000107,2]
[392830797,1762014514266,166.66,0.00014282,2]
[392830801,1762014537732,1842.5,0.0001386,2]
[392830809,1762014608388,159.9,0.00013823,2]
[392830824,1762014632369,-169.0,0.00014589,2]
[392830825,1762014632380,-112.876957,0.00014591,2]
[392830826,1762014632393,-47.023043,0.00014591,2]
[392830827,1762014632402,-195.0,0.00014613,2]
[392830828,1762014632412,-300.0,0.00014638,2]
[392830829,1762014632421,-150.0,0.00014687,2]
[392830830,1762014632432,-300.0,0.00014691,2]
[392830831,1762014632442,-195.0,0.00014698,2]
[392830832,1762014632451,-300.0,0.00014699,2]
[392830833,1762014632460,-300.0,0.00014699,2]
[392830834,1762014632470,-1200.0,0.00014699,2]
[392830835,1762014632480,-7719.35739682,0.000147,2]
[392830868,1762014640312,-7405.31277879,0.000147,2]
[392830869,1762014640321,-1510.36216514,0.000147,2]
[392830870,1762014640330,-791.75814969,0.00014758,2]
[392830871,1762014640340,-211.30064172,0.00014758,2]
[392830872,1762014640350,-248.90662051,0.00014773,2]
[392830873,1762014640359,-791.75814961,0.00014774,2]
[392830874,1762014640368,-248.90662045,0.00014787,2]
[392830875,1762014640377,-791.75814961,0.0001479,2]
[392830876,1762014640386,-1622.7519,0.000148,2]
[392830877,1762014640396,-248.90662045,0.00014801,2]
[392830878,1762014640405,-1200.0,0.00014805,2]
[392830879,1762014640417,-791.75814961,0.00014805,2]
[392830880,1762014640426,-11966.409599,0.00014807,2]
[392830881,1762014640435,-248.90662045,0.00014815,2]
[392830882,1762014640444,-791.75814961,0.00014821,2]
[392830883,1762014640454,-248.90662045,0.00014829,2]
[392830884,1762014640464,-791.75814961,0.00014837,2]
[392830885,1762014640473,-248.90662045,0.00014844,2]
[392830886,1762014640482,-150.0,0.00014844,2]
[392830887,1762014640491,-791.75814961,0.00014853,2]
[392830888,1762014640501,-564.33623491,0.00014856,2]
[392830889,1762014640510,-190.82323287,0.00014856,2]
[392830890,1762014640521,-500.0,0.00014856,2]
[392830891,1762014640538,-500.0,0.00014856,2]
[392830892,1762014640548,-500.0,0.00014856,2]
[392830893,1762014640556,-237.78375784,0.00014856,2]
[392830894,1762014640566,-500.0,0.00014856,2]
[392830895,1762014640575,-500.0,0.00014856,2]
[392830896,1762014640584,-500.0,0.00014856,2]
[392830897,1762014640593,-500.0,0.00014856,2]
[392830898,1762014640602,-500.0,0.00014856,2]
[392830899,1762014640611,-500.0,0.00014856,2]
[392830900,1762014640623,-500.0,0.00014856,2]
[392830901,1762014640632,-380.74773477,0.00014856,2]
[392830902,1762014640641,-500.0,0.00014856,2]
[392830903,1762014640651,-500.0,0.00014856,2]
[392830904,1762014640660,-55846.48620402,0.00014857,2]
[392830905,1762014640679,-960.09867848,0.00014857,2]
[392830906,1762014640691,-23403.97763648,0.00014857,2]
[392830907,1762014640737,-32230.6031437,0.00014857,2]
[392830924,1762014643326,-2003.2399129,0.00014857,2]